Cogmind - Beta 11.1 @@@ ROGUE MODE // 2022.07.13 @ 15:43:19 Player: Klevski Result: Destroyed by 8R-AWN with 8R-AWN's Boregun Performance ------------- Evolutions (1) 500 Regions Visited (5) 1000 Robots Destroyed (74) 370 Value Destroyed (1720) 1720 Prototype IDs (30) 600 Alien Tech Used (0) 0 Bonus (300) 300 TOTAL SCORE: 4490 Bonus ------- Aligned with FarCom 300 Cogmind --------- Core Integrity 0/400 Matter 150/300 Energy 100/100 System Corruption 2% Temperature Cool (0) Movement Core (50) Location -9/Exiles Parts ------- > --- POWER (1) -------- (None) > --- PROPULSION (2) --- (None) > --- UTILITY (4) ------ (None) > --- WEAPON (2) ------- (None) > --- INVENTORY (5) ---- Improved Ion Engine EMP Blaster Peak State ------------ > --- POWER ------------ Improved Ion Engine > --- PROPULSION ------- Improved Treads Improved Treads > --- UTILITY ---------- Large Storage Unit Targeting Computer Improved Light Armor Plating Improved Light Armor Plating > --- WEAPON ----------- YOLO Cannon > --- INVENTORY -------- Improved Ion Engine Nuclear Core Reinforced Deuterium Engine Fission Core [Rating: 35] Favorites ----------- Power Improved Ion Engine Engine Improved Ion Engine Propulsion Improved Treads Treads Improved Treads Utility Large Storage Unit Device Seismic Detector Storage Large Storage Unit Processor Targeting Computer Protection Improved Light Armor Plating Weapon Beam Cannon Energy Gun EM Shotgun Energy Cannon Beam Cannon Ballistic Gun Improved Assault Rifle Ballistic Cannon Improved Light Cannon Impact Weapon Heavy Hammer Build | -11 -10 -10 -9 -9 -9 ------- Run | Scr Mat Min Mat Min Exi Slots Evolved 2 | . . . 2 . . Power . | . . . . . . Propulsion . | . . . . . . Utility 2 | . . . 2 . . Weapon . | . . . . . . Parts Attached 63 | 6 18 3 30 . 6 Power 12 | 1 5 1 4 . 1 Engine 12 | 1 5 1 4 . 1 Core . | . . . . . . Reactor . | . . . . . . Propulsion 13 | 2 5 1 5 . . Treads 13 | 2 5 1 5 . . Leg . | . . . . . . Wheel . | . . . . . . Hover . | . . . . . . Flight . | . . . . . . Utility 19 | 1 2 1 13 . 2 Device 13 | . 1 1 10 . 1 Storage 2 | 1 1 . . . . Processor 1 | . . . 1 . . Hackware . | . . . . . . Protection 3 | . . . 2 . 1 Artifact . | . . . . . . Weapon 19 | 2 6 . 8 . 3 Energy Gun 6 | 1 3 . 2 . . Energy Cannon 6 | . 2 . 3 . 1 Ballistic Gun 5 | 1 1 . 1 . 2 Ballistic Cannon 1 | . . . 1 . . Launcher . | . . . . . . Special Weapon . | . . . . . . Impact Weapon 1 | . . . 1 . . Slashing Weapon . | . . . . . . Piercing Weapon . | . . . . . . Special Melee Weapon . | . . . . . . Unidentified Prototypes . | . . . . . . Parts Lost 14 | . 1 1 2 . 10 Power 2 | . . . 1 . 1 Propulsion 3 | . . 1 . . 2 Utility 4 | . . . . . 4 Weapon 5 | . 1 . 1 . 3 Highest Loss Streak 5 | . 1 1 1 . 5 To Critical Strikes 6 | . . . . . 6 Average Slot Usage (%) 93 | . 97 99 99 100 77 Engine 11 | . 13 14 10 11 10 Treads 23 | . 27 27 21 22 19 Device 11 | . 12 14 16 11 4 Storage 10 | . 15 14 11 11 6 Processor 7 | . . . 10 11 9 Protection 7 | . . . 5 11 16 Energy Gun 3 | . 7 . 5 . . Energy Cannon 10 | . 10 28 6 11 6 Ballistic Gun 5 | . 9 . 6 11 4 Naked Turns 14 | . . . . . 14 Heaviest Build 41 | 14 34 32 41 38 38 Greatest Support 46 | 40 40 40 46 46 46 Greatest Overweight (x) 8 | . 8 . . . 1 Average Overweight (x) . | . . . . . . Largest Inventory Capacity 15 | 8 15 15 15 15 15 Average Capacity 13 | 6 14 15 15 15 10 Most Carried 15 | 6 15 15 15 14 15 Average Carried 12 | 3 11 14 14 14 9 Final Capacity 15 | 8 15 15 15 15 5 Final Carried 15 | 5 15 14 14 14 2 Class Distribution -------------------- 68% | Mutant 25% | Commander-Mutant 5% | Scavenger-Mutant Dominant Class ---------------- Mutant | -10/Materials Mutant | -10/Mines Mutant | -9/Materials Commander-Mutant | -9/Mines Commander-Mutant | -9/Exiles Resources | -11 -10 -10 -9 -9 -9 ----------- Run | Scr Mat Min Mat Min Exi Matter Collected 1243 | 237 390 81 493 20 22 Remotely . | . . . . . . Salvage Created 2422 | . 544 511 1328 . 39 Parts 159 | . 39 36 80 . 4 Haulers Intercepted 6 | . 2 . 4 . . Recyclers Shooed . | . . . . . . Parts Field Recycled . | . . . . . . Retrieved Matter . | . . . . . . Parts Self-Destructed . | . . . . . . Prevented . | . . . . . . Kills | -11 -10 -10 -9 -9 -9 ------- Run | Scr Mat Min Mat Min Exi Combat Hostiles Destroyed 57 | . 12 14 26 . 5 Guns 17 | . 7 . 10 . . Cannons 32 | . 3 14 14 . 1 AOE 7 | . 2 . 1 . 4 Classes Destroyed 12 | . 5 1 4 . 2 Worker 2 | . . 1 1 . . Builder 1 | . . . 1 . . Tunneler 3 | . 1 2 . . . Hauler 6 | . 2 . 4 . . Recycler 1 | . . . 1 . . Watcher 7 | . 2 . 5 . . Swarmer 17 | . 4 6 7 . . Grunt 27 | . 8 8 11 . . Duelist 1 | . . . 1 . . Sentry 7 | . . . 7 . . Zionite 1 | . . . . . 1 Assembled 5 | . . . . . 5 Best Kill Streak 6 | . 6 4 4 . 6 Combat Bots Only 5 | . 4 3 4 . 5 Max Kills in Single Turn 4 | . 4 1 1 . 4 Gunslinging . | . . . . . . Exploded 3 | . 2 . 1 . 3 Melee . | . . . . . . Uniques/NPCs Destroyed 2 | . . . . . 2 EX-BIN (-9/Exiles) EX-DEC (-9/Exiles) Combat | -11 -10 -10 -9 -9 -9 -------- Run | Scr Mat Min Mat Min Exi Damage Taken 3294 | . 411 474 974 . 1435 Core 613 | . 94 111 148 . 260 Absorbed by Shields 64 | . . . 64 . . Regen/Repaired (Parts) 137 | . . . 137 . . Core Remaining (%) 59 | 100 . 18 . . . Volleys Fired 201 | . 35 33 90 . 43 Largest 2 | . 2 2 2 . 2 Hottest 120 | . 120 120 120 . 100 Shots Fired 364 | . 70 65 164 . 65 Gun 172 | . 48 . 78 . 46 Cannon 192 | . 22 65 86 . 19 Launcher . | . . . . . . Special . | . . . . . . Kinetic 143 | . 31 . 66 . 46 Thermal 172 | . 22 65 66 . 19 Explosive . | . . . . . . Electromagnetic 49 | . 17 . 32 . . Robot Hit Streak 17 | . 8 9 17 . 14 Robot Miss Streak 5 | . 4 5 3 . 1 Penetration Max . | . . . . . . Secondary Targets 1 | . 1 . . . . Max Gunslinging Chain 1 | . 1 . . . . Shots Hit Robots 252 | . 38 42 123 . 49 Core Hits 110 | . 21 20 52 . 17 Critical Kills 2 | . . . 2 . . Critical Parts Destroyed . | . . . . . . Critical Strikes 3 | . . . 2 . 1 Meltdown 1 | . . . 1 . . Destroy 2 | . . . 1 . 1 Melee Attacks 1 | . . . 1 . . Impact 1 | . . . 1 . . Slashing . | . . . . . . Piercing . | . . . . . . Sneak Attacks 1 | . . . 1 . . Combat Hostiles . | . . . . . . Follow-up Attacks . | . . . . . . Damage Inflicted 5193 | . 666 776 2173 . 1578 Guns 1735 | . 305 . 896 . 534 Cannons 2597 | . 250 776 1122 . 449 Explosions 775 | . 111 . 69 . 595 Melee 86 | . . . 86 . . Ramming . | . . . . . . Kinetic 1467 | . 182 . 751 . 534 Thermal 3124 | . 361 776 943 . 1044 Explosive . | . . . . . . Electromagnetic 516 | . 123 . 393 . . Impact 86 | . . . 86 . . Slashing . | . . . . . . Piercing . | . . . . . . Highest Corruption 2 | . . . . . 2 Average Corruption 2 | . . . . . 2 Corruption Purged . | . . . . . . Corruption Blocked . | . . . . . . Effects 5 | . . . . . 5 Matter Fused 2 | . . . . . 2 Data Loss (major) 1 | . . . . . 1 Misfires 2 | . . . . . 2 Overload Shots . | . . . . . . Overflow Damage 110 | . . 8 . . 102 Projectiles 47 | . . 8 . . 39 Explosions 63 | . . . . . 63 Melee . | . . . . . . Knockbacks 2 | . . . 2 . . Impact . | . . . . . . Kinetic 2 | . . . 2 . . Secondary . | . . . . . . Self-Inflicted Damage 54 | . . . 54 . . Shots 1 | . . . 1 . . Rammed 1 | . . . . . 1 Targets Rammed 1 | . . . . . 1 Kicked . | . . . . . . Crushed . | . . . . . . Highest Temperature 313 | . 180 313 216 . 164 Average Temperature 76 | . 56 118 58 . 77 Received Heat Transfer 735 | . 171 222 342 . . Effects 3 | . . 3 . . . Energy Bleed 1 | . . 1 . . . Interference 2 | . . 2 . . . Siege Activations . | . . . . . . Robots Corrupted . | . . . . . . Combat Hostiles . | . . . . . . Parts Fried 1 | . . . 1 . . Impact Corruptions . | . . . . . . Robots Melted 1 | . . . 1 . . Combat Hostiles 1 | . . . 1 . . Parts Melted 15 | . 3 6 4 . 2 Heat Transferred 5385 | . 618 1591 1876 . 1300 Parts Sabotaged . | . . . . . . Parts Stolen . | . . . . . . Parts Stripped . | . . . . . . Power Chain Reactions 2 | . 1 . 1 . . Missiles Intercepted . | . . . . . . Alert | -11 -10 -10 -9 -9 -9 ------- Run | Scr Mat Min Mat Min Exi Peak Influence 345 | . 306 268 345 51 . Initial 51 | . . 13 14 51 . Average 129 | . 131 116 156 48 . Maximum Alert Level 1 | . 1 1 1 . . Low Security (%) 73 | 100 69 91 60 100 . Level 1 26 | . 30 8 39 . . Level 2 . | . . . . . . Level 3 . | . . . . . . Level 4 . | . . . . . . Level 5 . | . . . . . . High Security . | . . . . . . Max Security . | . . . . . . Squads Dispatched 8 | . 3 . 5 . . Investigation 4 | . 2 . 2 . . Extermination . | . . . . . . Reinforcement 4 | . 1 . 3 . . Assault . | . . . . . . Garrison . | . . . . . . Intercept . | . . . . . . Searches Triggered . | . . . . . . Construction Impeded . | . . . . . . Haulers Reinforced . | . . . . . . Active Scanning Responses . | . . . . . . Cargo Convoy Interrupts . | . . . . . . Stealth | -11 -10 -10 -9 -9 -9 --------- Run | Scr Mat Min Mat Min Exi Distress Signals 6 | . 2 . 4 . . Communications Jammed . | . . . . . . Distress Signals . | . . . . . . Times Spotted 97 | . 20 17 44 . 16 Peak Tracking Total 11 | . 4 3 4 . 11 Tactical Retreats 7 | . 2 1 3 . 1 Traps | -11 -10 -10 -9 -9 -9 ------- Run | Scr Mat Min Mat Min Exi Traps Triggered 9 | . 8 . 1 . . Indirectly . | . . . . . . Trap Hack Attempts . | . . . . . . Triggered . | . . . . . . Disarmed . | . . . . . . Reprogrammed . | . . . . . . Reused . | . . . . . . Traps Extracted . | . . . . . . Installed . | . . . . . . Triggered . | . . . . . . Exploded 3 | . . . . . 3 Machines | -11 -10 -10 -9 -9 -9 ---------- Run | Scr Mat Min Mat Min Exi Machines Disabled 6 | . . . 2 . 4 Max in Single Turn 1 | . . . 1 . 1 Machines Sabotaged . | . . . . . . Garrisons Compromised . | . . . . . . Overloaded Fab Kills . | . . . . . . Hacking | -11 -10 -10 -9 -9 -9 --------- Run | Scr Mat Min Mat Min Exi Machines Accessed 24 | . 8 . 15 . 1 Terminals 16 | . 7 . 9 . . Fabricators . | . . . . . . Repair Stations 2 | . . . 2 . . Recycling Units 3 | . 1 . 2 . . Scanalyzers 2 | . . . 2 . . Garrison Access . | . . . . . . Total Hacks 77 | . 27 . 49 . 1 Successful 49 | . 18 . 30 . 1 Failed 27 | . 8 . 19 . . Catastrophic 1 | . . . 1 . . Database Lockouts 1 | . 1 . . . . Manual 43 | . 18 . 24 . 1 Terminals 57 | . 23 . 34 . . Fabricators . | . . . . . . Repair Stations 6 | . . . 6 . . Recycling Units 7 | . 4 . 3 . . Scanalyzers 6 | . . . 6 . . Garrison Access . | . . . . . . Terminal Hacks 21 | . 8 . 12 . 1 Part Schematic 1 | . . . 1 . . Robot Analysis 2 | . 2 . . . . Prototype ID Bank 3 | . 2 . 1 . . Branch Access Points 1 | . . . 1 . . Alert Level 3 | . 1 . 2 . . Unreport Threat 6 | . 2 . 4 . . Dispatch Records 2 | . . . 2 . . Hauler Manifests 2 | . 1 . 1 . . EX-Prototype ID Bank 1 | . . . . . 1 Fabricator Hacks . | . . . . . . Repair Station Hacks 5 | . . . 5 . . Scan Component 3 | . . . 3 . . Repair 2 | . . . 2 . . Recycling Unit Hacks . | . . . . . . Scanalyzer 4 | . . . 4 . . Insert Component 3 | . . . 3 . . Analyze 1 | . . . 1 . . Garrison Access Hacks . | . . . . . . Unauthorized Hacks 19 | . 10 . 9 . . Terminals 12 | . 6 . 6 . . Track 1 | . 1 . . . . Assimilate 3 | . . . 3 . . Botnet 6 | . 4 . 2 . . Operators 2 | . 1 . 1 . . Fabricators . | . . . . . . Repair Stations . | . . . . . . Recycling Units 7 | . 4 . 3 . . Monitor 2 | . 1 . 1 . . Recyclers 2 | . 1 . 1 . . Mask 1 | . 1 . . . . Tunnel 2 | . 1 . 1 . . Scanalyzers . | . . . . . . Garrison Access . | . . . . . . Data Cores Recovered . | . . . . . . Used . | . . . . . . Hacking Detections 22 | . 8 . 14 . . Full Trace Events . | . . . . . . Feedback Events . | . . . . . . Feedback Blocked . | . . . . . . Robot Schematics Acquired . | . . . . . . Robots Built . | . . . . . . Authchips . | . . . . . . Time . | . . . . . . Total Robot Build Rating . | . . . . . . Part Schematics Acquired 2 | . . . 2 . . Parts Built . | . . . . . . Authchips . | . . . . . . Time . | . . . . . . Total Part Build Rating . | . . . . . . Parts Repaired 2 | . . . 2 . . Time 64 | . . . 64 . . Parts Recycled . | . . . . . . Recycled Matter . | . . . . . . Retrieved Matter . | . . . . . . Retrieved Components . | . . . . . . Parts Scanalyzed 1 | . . . 1 . . Part Schematics Acquired 1 | . . . 1 . . Parts Damaged 1 | . . . 1 . . Bothacking | -11 -10 -10 -9 -9 -9 ------------ Run | Scr Mat Min Mat Min Exi Used RIF Installer . | . . . . . . Robots Hacked . | . . . . . . Non-combat . | . . . . . . Combat . | . . . . . . Robot Hacks Applied . | . . . . . . Relay Couplers Released . | . . . . . . Fabnet Peak Effective % . | . . . . . . Robots Rewired . | . . . . . . Allies Hacked . | . . . . . . Hacks Repelled . | . . . . . . Allies | -11 -10 -10 -9 -9 -9 -------- Run | Scr Mat Min Mat Min Exi Total Allies 5 | . . . 2 3 . Largest Group 5 | . . . 2 5 5 Highest-Rated Group 60 | . . . 20 60 60 Highest-Rated Ally 16 | . . . 10 16 16 Total Orders 17 | . . . 2 . 15 STAY 10 | . . . 1 . 9 FOLLOW 7 | . . . 1 . 6 Ally Attacks 67 | . . . . . 67 Total Damage 513 | . . . . . 513 Kills 4 | . . . . . 4 Allies Corrupted . | . . . . . . Allies Melted . | . . . . . . Intel | -11 -10 -10 -9 -9 -9 ------- Run | Scr Mat Min Mat Min Exi Robot Analysis Total 2 | . 2 . . . . Derelict Logs Recovered 2 | . . 1 . 1 . Drone Launches . | . . . . . . Drone Recoveries . | . . . . . . Exploration | -11 -10 -10 -9 -9 -9 ------------- Run | Scr Mat Min Mat Min Exi Turns Passed 6072 | 121 845 953 2182 416 1555 Spaces Moved 3173 | 68 416 500 1059 259 871 Core 31 | 2 1 . . . 28 Treads 3142 | 66 415 500 1059 259 843 Legs . | . . . . . . Wheels . | . . . . . . Hover . | . . . . . . Flight . | . . . . . . Fastest Speed 50 | 50 160 160 160 160 50 Average Speed 159 | 156 161 160 160 160 157 Slowest Speed 450 | 160 450 160 160 160 240 Overloaded Moves . | . . . . . . Propulsion Burnouts . | . . . . . . Robots Hopped . | . . . . . . Cave-ins Triggered . | . . . . . . Exploration Rate (%) 68 | 5 78 97 92 67 71 Regions Visited 5 Branch Regions 3 Pre-discovered Areas 3 | . 1 1 1 . . Known Exits Taken 1 | . . . 1 . . Unknown Exits Taken 4 | 1 1 1 . 1 . Scrap Searched 3 | . . 1 . 2 . Spaces Dug . | . . . . . . Terrain Destroyed 59 | . 2 . 7 . 50 Melee . | . . . . . . Projectile 3 | . . . 2 . 1 AOE 56 | . 2 . 5 . 49 Terrain Rammed . | . . . . . . Walls Destroyed . | . . . . . . Machines Disabled . | . . . . . . Actions | -11 -10 -10 -9 -9 -9 --------- Run | Scr Mat Min Mat Min Exi Total 3789 | 80 516 590 1385 261 957 Wait 245 | . 21 48 161 3 12 Move 3168 | 67 415 499 1058 258 871 Hop . | . . . . . . Pick Up 49 | 6 16 3 19 . 5 Fast Attach 28 | 6 14 . 5 . 3 Attach 8 | . 1 1 5 . 1 Detach 2 | . 1 . 1 . . Swap 27 | . 3 2 20 . 2 Drop 59 | 1 10 4 25 . 19 Fire 201 | . 35 33 90 . 43 Melee 1 | . . . 1 . . Ram . | . . . . . . Kick . | . . . . . . Crush 1 | . . . . . 1 Escape Stasis . | . . . . . . Rewire . | . . . . . . Trap . | . . . . . . Miscellaneous . | . . . . . . Route ------- -11/Scrapyard -10/Materials (discovered 5 exits: *Mat x3 / [*Min x2]) -10/Mines (discovered 2 exits: *Mat x2) -9/Materials (discovered 5 exits: [*Mat x3] / *Min x2) -9/Mines (discovered 3 exits: [*Mat x2] / *Exi) -9/Exiles (discovered 2 exits: [*Min x2]) History --------- Turn | Location | Event 2 | -11/Scrapyard | Met Revision 17 7 | -11/Scrapyard | Discovered new exit (range 16) 122 | -11/Scrapyard | Entered Materials 304 | -10/Materials | Discovered new exit (range 15) 306 | -10/Materials | Build established: Mutant 467 | -10/Materials | Discovered new exit (range 8) 524 | -10/Materials | Discovered new exit (range 16) 627 | -10/Materials | Central database locked down 659 | -10/Materials | Discovered new exit (range 7) 764 | -10/Materials | Discovered new exit (range 16) 967 | -10/Materials | Entered Mines 979 | -10/Mines | Met a Derelict bent on vengeance 986 | -10/Mines | Core integrity fell below 50% 1042 | -10/Mines | Found a damaged Exp. Sensor Array with a note attached 1046 | -10/Mines | Found Prototype Device 1235 | -10/Mines | Discovered new exit (range 8) 1478 | -10/Mines | Discovered new exit (range 10) 1613 | -10/Mines | Core integrity fell below 20% 1681 | -10/Mines | Learned location of Zion (-6) 1910 | -10/Mines | Build established: Scavenger-Mutant 1920 | -10/Mines | Entered Materials 1920 | -9/Materials | Evolved 2 slots: Utility x2 2217 | -9/Materials | Build established: Mutant 2458 | -9/Materials | Discovered new exit (range 14) 2477 | -9/Materials | Discovered new exit (range 16) 2592 | -9/Materials | Identified exit to Mines 2648 | -9/Materials | Identified Exp. Sensor Array 2667 | -9/Materials | Discovered new exit (range 16) 2999 | -9/Materials | Discovered new exit (range 3) 3965 | -9/Materials | Repaired Imp. Ion Engine 3999 | -9/Materials | Repaired Imp. Treads 4102 | -9/Materials | Entered Mines 4102 | -9/Mines | Accompanied by 2 allies 4238 | -9/Mines | Discovered new exit (range 10) 4282 | -9/Mines | Learned 2 Materials zone layouts 4285 | -9/Mines | Discovered new exit (range 4) 4302 | -9/Mines | Assisted by bots powering up and referring to "LRC-V3" 4509 | -9/Mines | Deemed a non-threat by the Exiles lab entrance 4509 | -9/Mines | Discovered new exit (range 5) 4518 | -9/Mines | Entered Exiles 4518 | -9/Exiles | Accompanied by 5 allies 4542 | -9/Exiles | Discovered new exit (range 15) 4558 | -9/Exiles | Met 8R-AWN 4589 | -9/Exiles | Met EX-HEX 4590 | -9/Exiles | Build established: Commander-Mutant 4658 | -9/Exiles | Met EX-DEC 4698 | -9/Exiles | Met EX-BIN 4723 | -9/Exiles | Aligned with FarCom system 4725 | -9/Exiles | Given EX-Vault access code 4763 | -9/Exiles | Opened EX-Vault 4778 | -9/Exiles | Found YOLO Cannon 4816 | -9/Exiles | Warned to stay clear of 0b10 Research branches 5202 | -9/Exiles | Discovered new exit (range 10) 5799 | -9/Exiles | Attacked by the Exiles 5809 | -9/Exiles | Core integrity fell below 50% 5819 | -9/Exiles | Destroyed EX-BIN 6017 | -9/Exiles | Core integrity fell below 20% 6073 | -9/Exiles | Destroyed by 8R-AWN with 8R-AWN's Boregun Last Messages --------------- 06046_ HV Slug penetrates Earth. 06048_ System corrupted: FCS attempts to trigger Imp. Assault Rifle. 06048_ System corrupted: Imp. Assault Rifle misfires. 06050_ Penetrated by HV Slug. 06050_ HV Slug penetrates Earth. 06050_ Penetrated by HV Slug. 06050_ Critical hit (Destroy). 06050_ Imp. Ion Engine destroyed. 06050_ HV Slug penetrates Earth. 06054_ HV Slug penetrates Wall. 06054_ Penetrated by HV Slug. 06054_ HV Slug penetrates Earth. 06059_ Penetrated by HV Slug. 06059_ Critical hit (Destroy). 06059_ Imp. Assault Rifle destroyed. 06059_ HV Slug penetrates Earth. 06059_ Penetrated by HV Slug. 06059_ HV Slug penetrates Earth. 06063_ HV Slug penetrates Wall. 06067_ Penetrated by HV Slug. Map ----- +----------------------------------------------------+ | ?????????????????????????????????????????????????? | | ?????????????????????????????????????????????????? | | ?????????????????????????????????????????????????? | | ?????????????????????????????????????????????????? | | ?????????????????????????????????????????????????? | | ?????????????????????????????????????????????????? | | ?????????????????????????????????????????????????? | | ?????????????????????????????????????????????????? | | ????????#####????????????????????????????????????? | | ???????## ##???????????????????????????????????? | | ???????# #???????????????????????????????????? | | ???????# < #???????????????????????????????????? | | ???????# ###?????????????????????????????????? | | ???????# #?????????????????????????????????? | | ???????# ##?????????????????????????????????? | | ???????## #??????????????????????????????????? | | ????????# ##?????????????????????????????????? | | ????????## ##???????????#######??????????????? | | ?????????# ;######??????#!!! "#??????????????? | | ?????????# #""##?????# "#??????????????? | | ?????????## ##????# "#??????????????? | | ??????????##" ;#???## ""#??????????##### | | ??????????#"" #####" ""#??????????# " | | ??????????#### ##" ""#??????????#"" " | | ?????????????## #"" #????????????#"" | | ??????????????#"## @ #????????????#"" | | | ??????????????####### ###??????????#""!/ | | ????????????????????### ;#??????????# | | ??????????????########"! g ;##?????????#"" | | ??????????????# !!""""" ##????????### | | ??????????????#! ; % ######??#### | | ??????????????#! # ; ###"#X# | | ??????????????#! ;####" | | ??????????????# !"" ;;;#??#"# | | ??????????????#####;#;;;###??#### | | ??????????????????#### ##???????### % ! | | ????????????????????? #??????????### %/ | | ???????????????????? ##????????????## | | ???????????????????# #???????????????## | | ??????????????????? ????????????????##" | | ?????????????????? #????????????????# " %%= | | ?????????????????# #?????????????????#"" %= | | ????????????????? ??????????????????#" * | | ????????????????##???????????????????#" | | ?????????????????????????????????????# | | ?????????????????????????????????????# | | ????????????????????????????????????#" | | ????????????????????????????????????#" % | | ????????????????????????????????????#" | | ????????????????????????????????????#"" | +----------------------------------------------------+ Best States ------------- Heat Dissipation 42 Energy Generation 12 Energy Capacity 265 Matter Stores 300 Matter Capacity 300 Sight Range 16 Terrain Scan Density 10 Armor Coverage 300 Evasion (%) 50 Targeting Accuracy 5 Recoil Reduction 2 Item Schematics ----------------- Lrg. Storage Unit | -9/Materials | Hacked Exp. Sensor Array | -9/Materials | Scanalyzed Robot Schematics ------------------ None Fabricated ------------ Nothing Alien Tech Used ----------------- None Achievements -------------- None Challenges ------------ None Game ------ Seed AntimatterAblativeGravjet Manual? 0 Play Time 01:17:32 Cumulative 122.0 hours Start 2022.07.13 @ 10:13:16 End 2022.07.13 @ 15:43:19 Sessions 3 Manual Loads 0 Difficulty Rogue Special Mode None Game No. 45 Rogue 45 Adventurer 0 Explorer 0 Win Type - Total 1 Types 1/0/0/0/0/0/0/0/0 Lore% 53 Gallery% 60 Achievement% 51 Wizard Run 0 Options --------- ASCII 0 Keyboard 0 Movement Numpad Keybinds 0 Fullscreen 1 Font 24/Smallcaps Map View 76x50 Tactical HUD 1 Map Filters NONE Filters NONE Steam 1 RUN: 6d96d8fa-b0e6-4361-bb2f-d6642851ed58